bitfinex-derivatives/quotes_SOLF0:USTF0_20241008
["timestamp","ask_amount","ask_price","bid_price","bid_amount"]
[1728411249687,1.3975,143.8,143.72,10.7]
[1728411249883,3.4798,143.76,143.74,3.4802]
[1728411252087,5.3,143.78,143.75,3.4799]
[1728411252288,5.3,143.78,143.74,10.7]
[1728411252490,5.3,143.78,143.77,3.4796]
[1728411252691,19.479,143.8,143.77,3.4796]
[1728411253085,5.3,143.8,143.79,3.4791]
[1728411253486,5.3,143.8,143.77,10.7]
[1728411253686,8.7788,143.8,143.78,3.4792]
[1728411254698,5.3,143.8,143.78,3.4792]
[1728411255086,5.3,143.8,143.79,3.4791]
[1728411256092,0.12502,143.81,143.79,3.4791]
[1728411257602,3.60362,143.81,143.77,10.7]
[1728411257807,0.12502,143.81,143.78,3.4792]
[1728411258309,3.4789,143.8,143.78,3.4792]
[1728411261209,0.12502,143.81,143.78,3.4792]
[1728411261412,3.60372,143.81,143.78,3.4792]
[1728411271319,3.60372,143.81,143.77,10.7]
[1728411271513,3.60372,143.81,143.79,3.479]
[1728411271715,0.12502,143.81,143.79,3.479]
[1728411272921,3.60372,143.81,143.79,3.479]
[1728411273221,0.12502,143.81,143.79,3.479]
[1728411273516,0.12502,143.81,143.8,3.4788]
[1728411275118,0.12518,143.88,143.8,15.98]
[1728411275420,0.12518,143.88,143.84,10.7]
[1728411276522,0.12518,143.88,143.86,3.4774]
[1728411284219,0.12518,143.88,143.86,14.1774]
[1728411290022,0.12518,143.88,143.86,3.4774]
[1728411291431,3.60218,143.88,143.86,3.4774]
[1728411297822,3.4774,143.86,143.83,2.8546]
[1728411298625,3.4774,143.86,143.83,4.9106]
[1728411300427,3.4777,143.85,143.83,4.9106]
[1728411300629,10.82502,143.87,143.83,4.9106]
[1728411301035,0.12502,143.87,143.83,12.1326]
[1728411301235,3.60232,143.87,143.84,3.4777]
[1728411301439,3.60232,143.87,143.84,14.1777]
[1728411303135,3.4775,143.86,143.84,14.1777]
[1728411304724,0.12502,143.87,143.84,10.7]
[1728411304926,0.12502,143.87,143.86,3.4774]
[1728411310739,0.12502,143.87,143.86,14.1774]
[1728411313038,0.12502,143.87,143.86,3.4774]
[1728411314242,0.12502,143.87,143.86,14.1774]
[1728411322657,0.12502,143.87,143.86,3.4774]
[1728411323654,0.12502,143.87,143.84,3.4777]
[1728411323655,10.82502,143.87,143.84,3.4777]
[1728411323951,10.82502,143.87,143.83,1.4326]
[1728411324156,3.4775,143.86,143.83,4.9106]
[1728411324759,3.4775,143.86,143.83,1.4326]
[1728411325050,0.12502,143.87,143.84,10.7]
[1728411325252,0.12502,143.87,143.85,10.7]
[1728411325453,0.12502,143.87,143.86,3.4774]
[1728411326943,3.60222,143.87,143.84,10.7]
[1728411327146,10.82502,143.87,143.83,1.4326]
[1728411327342,10.82502,143.87,143.84,3.4777]
[1728411327554,14.30232,143.87,143.84,3.4777]
[1728411329952,0.12502,143.87,143.8,92.09989031]
[1728411330147,10.7,143.84,143.81,3.4785]
[1728411330856,14.178,143.84,143.81,3.4785]
[1728411331259,10.7,143.84,143.8,92.09989031]
[1728411331446,10.7,143.81,143.7,6.9625]
[1728411331653,10.7,143.8,143.75,10.82502]
[1728411331857,3.4794,143.78,143.75,10.82502]
[1728411332254,3.4792,143.79,143.76,3.4796]
[1728411332559,10.7,143.8,143.75,10.82502]
[1728411332759,14.1795,143.78,143.75,3.60502]
[1728411333564,10.7,143.78,143.75,0.12502]
[1728411334167,10.7,143.76,143.7,1.4428]
[1728411334354,10.7,143.73,143.69,0.12502]
[1728411334658,15.98,143.73,143.7,3.4811]
[1728411335154,15.98,143.73,143.69,0.12502]
[1728411335357,5.28,143.73,143.71,10.7]
[1728411335764,8.7599,143.76,143.72,3.4806]
[1728411337661,5.28,143.76,143.72,3.4806]
[1728411337861,3.4801,143.75,143.72,3.4806]
[1728411339173,3.4803,143.74,143.7,10.7]
[1728411339461,10.7,143.71,143.69,0.12502]
[1728411339667,10.7,143.7,143.69,0.12502]
[1728411339860,14.1813,143.7,143.69,0.12502]
[1728411341461,3.4813,143.7,143.69,0.12502]
[1728411342259,14.1813,143.7,143.69,0.12502]
[1728411342966,3.4824,143.66,143.63,3.60792]
[1728411343164,10.7,143.65,143.63,3.60792]
[1728411343362,15.98,143.67,143.66,3.4822]
[1728411343560,5.28,143.67,143.66,3.4822]
[1728411344361,16.71,143.71,143.67,3.482]
[1728411344567,3.4816,143.69,143.63,0.12502]
[1728411345666,5.28,143.69,143.63,0.12502]
[1728411345866,5.28,143.7,143.63,16.83502]
[1728411346054,5.28,143.7,143.65,16.71]
[1728411346370,5.28,143.7,143.66,1.4047]
[1728411347067,8.7609,143.72,143.69,3.4813]
[1728411347966,5.28,143.72,143.66,1.4047]
[1728411348267,5.28,143.74,143.67,16.71]
[1728411348463,0.12502,143.75,143.73,3.4805]
[1728411348654,5.40502,143.75,143.73,3.4805]
[1728411349070,8.88532,143.75,143.69,16.71]
[1728411349663,8.88532,143.75,143.72,3.4808]
[1728411351065,5.40502,143.75,143.67,16.71]
[1728411351766,5.40502,143.75,143.67,20.19410148]
[1728411352070,0.12502,143.75,143.7,16.71]
[1728411352270,0.12502,143.75,143.74,3.4803]
[1728411363574,0.12502,143.75,143.67,16.71]
[1728411363767,5.26,143.74,143.66,2.7402]
[1728411363968,5.26,143.74,143.66,8.0002]
[1728411364165,5.26,143.74,143.72,3.4807]
[1728411364366,5.26,143.74,143.67,20.19219376]
[1728411365378,5.26,143.74,143.67,16.71]
[1728411366367,3.4806,143.73,143.67,16.71]
[1728411367378,3.4806,143.73,143.7,3.4811]
[1728411368376,5.26,143.74,143.66,2.7402]
[1728411368580,5.26,143.74,143.68,3.4817]
[1728411368581,16.71,143.72,143.68,3.4817]
[1728411369476,16.71,143.72,143.67,3.4818]
[1728411370271,16.71,143.7,143.66,3.4822]
[1728411370483,21.97,143.7,143.63,0.12502]
[1728411370778,3.4825,143.66,143.63,0.12502]
[1728411370980,3.4825,143.66,143.63,3.60782]
[1728411371184,8.7425,143.66,143.63,3.60782]
[1728411371775,21.97,143.66,143.63,0.12502]
[1728411371976,3.4827,143.64,143.63,0.12502]
[1728411372388,16.71,143.64,143.57,2.76402]
[1728411372585,3.4833,143.62,143.59,3.4838]
[1728411372781,8.7433,143.62,143.59,3.4838]
[1728411373989,3.4838,143.6,143.57,3.60932]
[1728411374187,16.71,143.61,143.57,0.12502]
[1728411374692,3.4842,143.58,143.57,0.12502]
[1728411374989,8.7642,143.58,143.57,0.12502]
[1728411382194,5.28,143.58,143.53,3.4853]
[1728411382495,3.4847,143.56,143.53,3.4853]
[1728411382888,3.4845,143.57,143.54,3.485]
[1728411383089,19.3939,143.61,143.52,1.3196]
[1728411383390,5.26,143.6,143.52,1.3196]
[1728411384196,5.26,143.6,143.57,3.4843]
[1728411384197,8.7439,143.6,143.57,3.4843]
[1728411384999,5.26,143.59,143.58,3.484]
[1728411385796,3.4835,143.61,143.53,18.0565]
[1728411385993,5.26,143.6,143.59,3.4838]
[1728411386794,3.60812,143.63,143.54,16.71]
[1728411387000,5.26,143.62,143.54,16.71]
[1728411387197,0.12502,143.63,143.56,16.71]
[1728411387404,5.38502,143.63,143.62,3.4832]
[1728411387602,5.38502,143.63,143.57,1.3643]
[1728411387603,5.38502,143.63,143.58,1.3087]
[1728411388193,0.12502,143.63,143.62,3.4832]
[1728411391003,16.83502,143.63,143.51,5.38502]
[1728411391207,16.71,143.6,143.53,1.3997]
[1728411391499,16.71,143.58,143.53,1.3997]
[1728411392204,3.4846,143.57,143.54,3.485]
[1728411392504,5.26,143.56,143.54,3.485]
[1728411394001,5.26,143.56,143.53,1.3997]
[1728411394307,5.26,143.56,143.55,3.4849]
[1728411394709,16.71,143.6,143.53,1.3997]
[1728411394907,5.26,143.59,143.56,3.4845]
[1728411395103,5.26,143.59,143.53,1.3997]
[1728411395415,16.71,143.58,143.54,3.485]
[1728411395608,16.71,143.58,143.53,1.3997]
[1728411395808,3.4846,143.57,143.53,1.3997]
[1728411396106,3.4846,143.57,143.54,3.4851]
[1728411397810,3.4843,143.58,143.55,3.4847]
[1728411398008,5.26,143.59,143.53,1.3997]
[1728411398399,3.4842,143.58,143.55,3.4848]
[1728411398607,16.71,143.58,143.53,1.3997]
[1728411399012,16.71,143.58,143.54,3.485]
[1728411399712,3.4846,143.57,143.54,3.485]
[1728411400207,8.7441,143.59,143.56,3.4845]
[1728411400413,8.7441,143.59,143.53,1.3997]
[1728411400414,5.26,143.59,143.53,1.3997]
[1728411400806,3.4844,143.58,143.54,3.485]
[1728411401000,20.1944,143.58,143.52,1.4109]
[1728411401400,5.26,143.57,143.55,3.4848]
[1728411401814,8.7444,143.57,143.55,3.4848]
[1728411402013,16.71,143.56,143.51,1.52042]
[1728411402315,16.71,143.56,143.52,3.4855]
[1728411402507,20.1948,143.56,143.51,1.52042]
[1728411402811,20.1948,143.56,143.53,3.4853]
[1728411403013,5.26,143.57,143.51,1.52042]
[1728411403014,8.7445,143.57,143.51,1.52042]
[1728411403204,5.26,143.57,143.51,1.52042]
[1728411404115,5.26,143.57,143.56,3.4847]
[1728411407506,20.1939,143.6,143.52,16.71]
[1728411407711,25.4539,143.6,143.58,3.4842]
[1728411408316,25.4539,143.6,143.57,3.4843]
[1728411408921,25.4539,143.6,143.58,3.4842]
[1728411412122,8.7439,143.6,143.58,3.4842]
[1728411415430,3.4843,143.58,143.56,3.4845]
[1728411415731,5.26,143.6,143.54,1.3205]
[1728411416328,3.4841,143.59,143.57,3.4844]
[1728411418929,3.4843,143.58,143.56,3.4845]
[1728411419230,5.26,143.57,143.51,1.52042]
[1728411419628,3.485,143.55,143.53,3.4853]
[1728411420031,3.4849,143.55,143.53,3.4853]
[1728411420232,16.71,143.56,143.51,1.52042]
[1728411420626,3.4853,143.54,143.51,1.52042]
[1728411420821,3.4853,143.54,143.51,5.00612]
[1728411421026,3.4853,143.54,143.51,1.52042]
[1728411421231,3.485,143.55,143.52,3.4855]
[1728411422230,3.4852,143.54,143.52,3.4855]
[1728411422537,16.71,143.56,143.52,3.4855]
[1728411422930,3.485,143.55,143.52,3.4855]
[1728411423135,5.26,143.57,143.55,3.4848]
[1728411424037,5.26,143.57,143.56,3.4847]
[1728411424537,3.4838,143.6,143.52,16.71]
[1728411424739,5.26,143.59,143.52,18.0537]
[1728411425939,3.4842,143.58,143.54,3.4851]
[1728411426141,3.4842,143.58,143.52,18.0537]
[1728411426334,3.4842,143.58,143.52,1.3437]
[1728411426838,5.26,143.59,143.52,1.3437]
[1728411427041,8.744,143.59,143.57,3.4843]
[1728411429442,8.744,143.59,143.56,3.4845]
[1728411429634,5.26,143.59,143.52,18.0537]
[1728411429939,5.26,143.59,143.55,3.4847]
[1728411430148,5.26,143.59,143.52,18.0537]
[1728411431453,3.4843,143.58,143.56,3.4846]
[1728411434556,3.4841,143.59,143.52,18.0537]
[1728411434758,8.7441,143.59,143.52,18.0537]
[1728411435251,8.7441,143.59,143.56,3.4845]
[1728411435657,8.7441,143.59,143.52,18.0537]
[1728411436555,3.4843,143.58,143.56,3.4845]
[1728411436759,21.97,143.59,143.52,1.3437]
[1728411436949,5.26,143.59,143.52,1.3437]
[1728411437150,8.744,143.59,143.57,3.4844]
[1728411437552,5.26,143.59,143.57,3.4844]
[1728411437757,5.26,143.59,143.58,3.4842]
[1728411440352,5.26,143.59,143.57,3.4843]
[1728411440551,5.26,143.59,143.52,1.3437]
[1728411441054,5.26,143.59,143.56,3.4845]
[1728411441550,5.26,143.59,143.52,1.3437]
[1728411441551,5.26,143.61,143.53,21.97]
[1728411441757,5.26,143.61,143.6,3.4835]
[1728411442253,16.83502,143.63,143.6,3.4835]
[1728411442460,8.7434,143.62,143.59,3.4838]
[1728411442857,8.7434,143.62,143.55,16.71]
[1728411443260,8.7434,143.62,143.6,3.4835]
[1728411443764,5.26,143.62,143.6,3.4835]
[1728411444263,8.7433,143.62,143.6,3.4835]
[1728411446363,10.7,143.61,143.6,3.4835]
[1728411446868,0.12502,143.63,143.56,10.7]
[1728411447059,0.12502,143.63,143.62,3.4832]
[1728411447562,3.60802,143.63,143.61,3.4833]
[1728411448363,14.30802,143.63,143.61,3.4833]
[1728411448562,3.60802,143.63,143.61,3.4833]
[1728411449867,0.12502,143.63,143.57,2.7252]
[1728411450051,0.12502,143.63,143.62,3.4832]
[1728411454769,5.26,143.67,143.59,21.98]
[1728411454975,3.482,143.67,143.6,1.387]
[1728411455263,21.98,143.68,143.62,3.483]
[1728411455657,16.72,143.66,143.6,1.387]
[1728411455968,16.72,143.64,143.6,3.4835]
[1728411456160,21.98,143.64,143.6,3.4835]
[1728411456668,3.4831,143.63,143.6,3.4835]
[1728411457068,3.4831,143.63,143.57,95.09264596]
[1728411457372,25.4628,143.64,143.61,3.4833]
[1728411457861,3.483,143.63,143.61,3.4833]
[1728411458161,21.98,143.64,143.61,3.4833]
[1728411458470,25.4629,143.64,143.61,3.4833]
[1728411458671,25.4629,143.64,143.57,95.09264596]
[1728411458966,21.98,143.64,143.62,3.4831]
[1728411459155,21.98,143.64,143.57,95.09264596]
[1728411459964,25.4627,143.64,143.62,3.483]
[1728411460163,21.98,143.64,143.57,95.09264596]
[1728411461362,3.483,143.63,143.61,3.4833]
[1728411462569,8.7428,143.64,143.61,3.4833]
[1728411464270,0.12502,143.69,143.58,16.72]
[1728411464468,0.12502,143.69,143.6,16.72]
[1728411464772,5.26,143.68,143.62,16.72]
[1728411464971,8.7418,143.68,143.63,1.3194]
[1728411465168,5.26,143.68,143.63,1.3194]
[1728411466771,5.26,143.68,143.66,3.4821]
[1728411466968,3.60662,143.69,143.66,3.4821]
[1728411467163,8.86662,143.69,143.66,3.4821]
[1728411467366,5.38502,143.69,143.67,3.4819]
[1728411467775,5.38502,143.69,143.63,2.6953]
[1728411468078,5.38502,143.69,143.68,3.4817]
[1728411470575,16.08502,143.69,143.63,2.6953]
[1728411470776,10.7,143.65,143.64,3.4826]
[1728411470980,10.7,143.65,143.6,5.26]
[1728411471272,5.38502,143.69,143.6,3.4835]
[1728411471273,10.7,143.62,143.6,3.4835]
[1728411471667,10.7,143.62,143.58,4.0421]
[1728411471868,10.7,143.64,143.62,3.4831]
[1728411472974,14.1826,143.65,143.62,3.483]
[1728411473279,10.7,143.65,143.62,3.483]
[1728411474076,14.1826,143.65,143.63,3.4829]
[1728411474476,10.7,143.65,143.63,3.4829]
[1728411474675,10.7,143.65,143.61,10.7]
[1728411475483,10.7,143.65,143.63,3.4828]
[1728411475778,14.1825,143.65,143.59,10.7]
[1728411475983,10.7,143.64,143.59,10.7]
[1728411476286,14.1829,143.64,143.59,10.7]
[1728411477687,10.7,143.65,143.59,10.7]
[1728411478280,14.1826,143.65,143.62,3.483]
[1728411478486,14.1826,143.65,143.59,10.7]
[1728411478980,10.7,143.65,143.59,10.7]
[1728411479283,10.7,143.65,143.63,3.4829]
[1728411479684,3.4827,143.64,143.6,3.4835]
[1728411479886,3.4827,143.64,143.59,10.7]
[1728411480085,10.7,143.64,143.58,4.0421]
[1728411480285,10.7,143.64,143.58,14.7421]
[1728411480486,14.1828,143.64,143.61,3.4833]
[1728411480682,10.7,143.64,143.61,3.4833]
[1728411481588,3.4831,143.63,143.61,3.4833]
[1728411481783,2.6393,143.68,143.61,3.4833]
[1728411481988,10.7,143.65,143.62,3.4831]
[1728411482184,14.1827,143.65,143.62,3.4831]
[1728411482782,14.1827,143.65,143.63,3.4829]
[1728411482989,10.7,143.65,143.63,3.4829]
[1728411483184,14.1824,143.66,143.6,10.7]
[1728411483584,3.4826,143.65,143.63,3.4829]
[1728411484385,14.1824,143.66,143.64,3.4826]
[1728411484580,10.7,143.66,143.6,10.7]
[1728411485386,3.4826,143.65,143.61,3.4833]
[1728411485581,3.4826,143.65,143.6,10.7]
[1728411486395,3.4826,143.65,143.63,3.4829]
[1728411487794,5.26,143.67,143.62,10.7]
[1728411487795,15.96,143.67,143.62,10.7]
[1728411487995,19.4421,143.67,143.65,3.4825]
[1728411488299,0.12502,143.69,143.66,10.7]
[1728411488504,0.12502,143.69,143.68,3.4818]
[1728411489199,74.22636967,143.75,143.71,3.4808]
[1728411489395,10.7,143.72,143.67,10.7]
[1728411489693,3.4815,143.69,143.67,3.4819]
[1728411489898,3.4815,143.69,143.64,17.08118015]
[1728411490301,10.7,143.7,143.65,3.4823]
[1728411490302,3.4819,143.68,143.65,3.4823]
[1728411490495,10.7,143.7,143.64,13.5112]
[1728411491300,3.4816,143.69,143.66,3.482]
[1728411492898,10.7,143.7,143.64,2.8112]
[1728411493103,14.1819,143.68,143.65,3.4824]
[1728411493304,10.7,143.67,143.64,2.8112]
[1728411493504,10.7,143.67,143.64,1.3991]
[1728411493693,10.7,143.68,143.64,1.3991]
[1728411493995,14.1819,143.68,143.65,3.4825]
[1728411494203,14.1819,143.68,143.64,1.3991]
[1728411494395,10.7,143.68,143.66,3.4822]
[1728411494595,10.7,143.68,143.64,1.3991]
[1728411494991,14.1819,143.68,143.65,3.4824]
[1728411495810,5.26,143.69,143.65,10.7]
[1728411496103,68.96636967,143.75,143.68,3.4815]
[1728411496104,19.4412,143.71,143.68,3.4815]
[1728411496304,14.1812,143.71,143.68,3.4815]
[1728411497698,10.7,143.71,143.69,3.4814]
[1728411497901,8.7409,143.72,143.64,1.3991]
[1728411497902,5.26,143.72,143.68,10.7]
[1728411498206,15.96,143.73,143.69,10.7]
[1728411498902,19.4407,143.73,143.7,3.4811]
[1728411504099,3.4812,143.71,143.68,3.4817]
[1728411504500,10.7,143.72,143.68,3.4817]
[1728411504711,3.4812,143.71,143.68,3.4817]
[1728411506107,10.7,143.72,143.66,15.96]
[1728411506303,14.1809,143.72,143.69,3.4813]
[1728411506606,10.7,143.71,143.66,15.96]
[1728411507009,14.1811,143.71,143.68,3.4815]
[1728411507412,3.4811,143.71,143.68,3.4815]
[1728411508112,3.4811,143.71,143.69,3.4815]
[1728411510403,10.7,143.72,143.69,3.4815]
[1728411510609,14.1809,143.72,143.69,3.4815]
[1728411513310,14.1809,143.72,143.7,3.4812]
[1728411514009,15.96,143.73,143.68,10.7]
[1728411514212,19.4407,143.73,143.71,3.481]
[1728411514714,0.12502,143.75,143.7,10.7]
[1728411514905,0.12502,143.75,143.71,10.7]
[1728411515307,0.12502,143.75,143.73,10.7]
[1728411515507,0.12502,143.75,143.74,3.4803]
[1728411517813,0.12502,143.81,143.78,3.4792]
[1728411518118,5.36502,143.81,143.76,10.7]
[1728411519319,16.06502,143.81,143.76,10.7]
[1728411519617,19.54362,143.81,143.78,3.4792]
[1728411519820,0.12502,143.81,143.78,10.7]
[1728411520017,0.12502,143.81,143.8,3.4788]
[1728411521026,0.12502,143.81,143.8,14.1788]
[1728411521214,5.24,143.86,143.8,10.7]
[1728411521521,3.4777,143.85,143.82,10.7]
[1728411521721,10.7,143.84,143.79,10.7]
[1728411522127,3.4784,143.82,143.77,10.7]
[1728411522420,10.7,143.83,143.77,10.7]
[1728411522618,10.7,143.84,143.79,10.7]
[1728411523022,10.7,143.84,143.8,3.4787]
[1728411523216,3.4781,143.83,143.79,10.7]
[1728411523415,10.7,143.83,143.79,3.479]
[1728411523819,3.4785,143.82,143.78,10.7]
[1728411524121,3.4785,143.82,143.79,3.4789]
[1728411525925,10.7,143.83,143.78,10.7]
[1728411526126,3.479,143.8,143.77,3.4795]
[1728411526528,3.479,143.8,143.76,13.4093]
[1728411526727,3.479,143.8,143.78,3.4793]
[1728411527124,3.4787,143.81,143.78,3.4793]
[1728411527318,5.24,143.83,143.78,3.4793]
[1728411527520,5.24,143.83,143.81,3.4786]
[1728411527722,8.7182,143.83,143.79,10.7]
[1728411528133,5.24,143.83,143.79,10.7]
[1728411528624,5.24,143.83,143.81,3.4785]
[1728411528931,8.7183,143.83,143.79,10.7]
[1728411529229,8.7183,143.83,143.8,3.4787]
[1728411532431,5.24,143.83,143.8,10.7]
[1728411532632,10.82502,143.87,143.82,10.7]
[1728411532824,5.24,143.86,143.82,10.7]
[1728411533025,8.84222,143.87,143.84,14.1777]
[1728411534033,3.4775,143.86,143.84,3.4777]
[1728411534338,16.06502,143.87,143.83,3.4781]
[1728411534633,3.4774,143.86,143.83,14.1781]
[1728411535431,3.4774,143.86,143.83,10.7]
[1728411535629,3.4774,143.86,143.84,3.4779]
[1728411536531,3.4777,143.85,143.82,10.7]
[1728411537133,3.4777,143.85,143.82,14.1782]
[1728411537533,3.4777,143.85,143.83,3.4781]
[1728411539531,10.7,143.84,143.77,6.59]
[1728411539732,10.7,143.84,143.79,10.7]
[1728411539935,3.478,143.84,143.82,3.4783]
[1728411540338,10.7,143.86,143.81,10.7]
[1728411540547,3.4777,143.85,143.83,3.478]
[1728411541037,3.4777,143.85,143.82,14.1782]
[1728411541333,16.06502,143.87,143.81,10.7]
[1728411541334,10.7,143.86,143.81,10.7]
[1728411542238,3.4782,143.83,143.81,14.1785]
[1728411542534,10.7,143.84,143.79,10.7]
[1728411543541,10.7,143.83,143.77,1.35]
[1728411543731,10.7,143.81,143.77,12.05]
[1728411543930,3.4791,143.8,143.77,15.5294]
[1728411544142,5.24,143.81,143.77,12.05]
[1728411544340,5.24,143.81,143.78,10.7]
[1728411544648,5.24,143.81,143.78,14.1792]
[1728411544941,3.4795,143.78,143.75,14.30492]
[1728411545141,3.4795,143.78,143.75,10.82502]
[1728411546439,3.4796,143.77,143.75,0.12502]
[1728411546744,10.7,143.77,143.75,0.12502]
[1728411547041,3.4798,143.76,143.75,0.12502]
[1728411549941,15.94,143.78,143.75,0.12502]
[1728411550245,3.4797,143.77,143.75,3.60502]
[1728411550644,15.94,143.78,143.75,3.60502]
[1728411550947,15.94,143.78,143.75,0.12502]
[1728411551445,19.4195,143.78,143.75,0.12502]
[1728411551847,15.94,143.78,143.75,0.12502]
[1728411552249,5.24,143.78,143.75,10.82502]
[1728411552443,5.24,143.78,143.75,14.30492]
[1728411552643,8.7195,143.78,143.75,14.30492]
[1728411552842,8.7195,143.78,143.75,10.82502]
[1728411553044,8.7195,143.78,143.76,3.4798]
[1728411553245,8.7195,143.78,143.75,10.82502]
[1728411553741,8.7195,143.78,143.75,14.30492]
[1728411553946,3.4796,143.77,143.75,14.30492]
[1728411554148,3.4796,143.77,143.75,3.60492]
[1728411554844,3.4798,143.76,143.75,0.12502]
[1728411555045,14.1798,143.76,143.75,0.12502]
[1728411559150,3.4798,143.76,143.75,0.12502]
[1728411559655,10.7,143.77,143.75,0.12502]
[1728411560441,10.7,143.76,143.75,0.12502]
[1728411561450,14.1798,143.76,143.75,0.12502]
[1728411562449,3.4798,143.76,143.75,0.12502]
[1728411564655,14.1798,143.76,143.75,0.12502]
[1728411571055,3.4798,143.76,143.75,0.12502]
[1728411572260,14.1798,143.76,143.75,0.12502]
[1728411574359,3.4811,143.71,143.69,2.80842]
[1728411574558,15.94,143.73,143.69,6.28972]
[1728411575457,3.4809,143.72,143.7,3.4812]
[1728411576063,15.94,143.73,143.69,2.80842]
[1728411576260,10.7,143.71,143.69,1.43362]
[1728411576466,10.7,143.7,143.69,0.12502]
[1728411576657,15.94,143.7,143.69,0.12502]
[1728411576963,15.94,143.7,143.63,10.82502]
[1728411576964,15.94,143.7,143.63,0.12502]
[1728411577164,10.7,143.66,143.63,0.12502]
[1728411577866,3.4825,143.65,143.63,0.12502]
[1728411578057,10.7,143.66,143.63,0.12502]
[1728411578458,14.1823,143.66,143.63,3.60792]
[1728411578660,3.4823,143.66,143.63,3.60792]
[1728411581669,15.94,143.67,143.63,3.60792]
[1728411581670,19.4221,143.67,143.65,3.4825]
[1728411581858,5.24,143.67,143.65,3.4825]
[1728411582268,15.94,143.67,143.64,3.4826]
[1728411582866,19.4221,143.67,143.64,3.4826]
[1728411583162,10.7,143.7,143.64,10.7]
[1728411583363,5.24,143.69,143.65,10.7]
[1728411583671,10.7,143.7,143.65,10.7]
[1728411583672,5.24,143.7,143.65,10.7]
[1728411583864,5.24,143.7,143.68,3.4817]
[1728411584569,8.7214,143.7,143.65,10.7]
[1728411584868,10.7,143.67,143.65,3.4825]
[1728411585067,10.7,143.66,143.63,0.12502]
[1728411585668,3.4826,143.65,143.63,0.12502]
[1728411586575,3.4827,143.64,143.63,0.12502]
[1728411587763,3.4826,143.65,143.63,0.12502]
[1728411591269,3.4827,143.64,143.63,0.12502]
[1728411591666,21.96,143.67,143.63,3.60792]
[1728411593474,3.4826,143.65,143.63,3.60792]
[1728411594169,16.72,143.69,143.63,0.12502]
[1728411594363,5.24,143.68,143.63,0.12502]
[1728411594870,5.24,143.68,143.64,3.4826]
[1728411595196,5.24,143.68,143.63,0.12502]
[1728411595373,3.4824,143.66,143.64,3.4827]
[1728411596577,3.4821,143.67,143.64,3.4826]
[1728411597074,3.4821,143.67,143.63,0.12502]
[1728411597275,5.24,143.68,143.64,3.4827]
[1728411597475,3.4824,143.66,143.64,3.4827]
[1728411598876,3.4824,143.66,143.63,0.12502]
[1728411599070,3.4824,143.66,143.63,3.60792]
[1728411599272,3.4824,143.66,143.63,0.12502]
[1728411599880,3.4824,143.66,143.64,3.4827]
[1728411600178,3.4824,143.66,143.63,0.12502]
[1728411600383,3.4821,143.67,143.63,3.60792]
[1728411600581,5.24,143.68,143.63,0.12502]